fUSD/lending_fUSD_20260321
["ID","MTS","AMOUNT","RATE_DAILY","PERIOD"]
[408682290,1774114242237,-500.0,0.00013698,2]
[408682291,1774114242247,-500.0,0.00013698,2]
[408682292,1774114242256,-500.0,0.00013698,2]
[408682293,1774114242266,-500.0,0.00013698,2]
[408682294,1774114242277,-500.0,0.00013698,2]
[408682295,1774114242287,-500.0,0.00013698,2]
[408682296,1774114242297,-500.0,0.00013698,2]
[408682297,1774114242306,-500.0,0.00013698,2]
[408682298,1774114242316,-500.0,0.00013698,2]
[408682299,1774114242326,-500.0,0.00013698,2]
[408682300,1774114242335,-500.0,0.00013698,2]
[408682301,1774114242345,-500.0,0.00013698,2]
[408682302,1774114242354,-500.0,0.00013698,2]
[408682303,1774114242365,-500.0,0.00013698,2]
[408682304,1774114242375,-500.0,0.00013698,2]
[408682305,1774114242385,-500.0,0.00013698,2]
[408682306,1774114242395,-500.0,0.00013698,2]
[408682307,1774114242404,-500.0,0.00013698,2]
[408682308,1774114242414,-500.0,0.00013698,2]
[408682309,1774114242424,-500.0,0.00013698,2]
[408682310,1774114242434,-500.0,0.00013698,2]
[408682311,1774114242443,-500.0,0.00013698,2]
[408682312,1774114242453,-500.0,0.00013698,2]
[408682313,1774114242463,-385.93623428,0.00013698,2]
[408682314,1774114242472,-4052.08,0.00013698,2]
[408682315,1774114242481,-4052.08,0.00013698,2]
[408682316,1774114242491,-4052.08,0.00013698,2]
[408682317,1774114242500,-4052.08,0.00013698,2]
[408682318,1774114242509,-4052.08,0.00013698,2]
[408682319,1774114242520,-4052.08,0.00013698,2]
[408682320,1774114242530,-4052.08,0.00013698,2]
[408682321,1774114242539,-4052.08,0.00013698,2]
[408682322,1774114242550,-4052.08,0.00013698,2]
[408682323,1774114242560,-4052.08,0.00013698,2]
[408682324,1774114242569,-4052.08,0.00013698,2]
[408682325,1774114242580,-4052.08,0.00013698,2]
[408682326,1774114242590,-4052.08,0.00013698,2]
[408682327,1774114242599,-4052.08,0.00013698,2]
[408682328,1774114242609,-4052.08,0.00013698,2]
[408682329,1774114242618,-4052.08,0.00013698,2]
[408682330,1774114242627,-289.39363611,0.00013698,2]
[408682331,1774114242637,-500.0,0.00013698,2]
[408682332,1774114242646,-500.0,0.00013698,2]
[408682333,1774114242655,-500.0,0.00013698,2]
[408682334,1774114242665,-500.0,0.00013698,2]
[408682335,1774114242675,-500.0,0.00013698,2]
[408682336,1774114242684,-500.0,0.00013698,2]
[408682337,1774114242694,-500.0,0.00013698,2]
[408682338,1774114242704,-255.58041295,0.00013698,2]
[408682339,1774114242713,-500.0,0.00013698,2]
[408682340,1774114242723,-500.0,0.00013698,2]
[408682341,1774114242733,-622.71396228,0.00013698,2]
[408682342,1774114242742,-500.0,0.00013698,2]
[408682343,1774114242752,-500.0,0.00013698,2]
[408682344,1774114242761,-500.0,0.00013698,2]
[408682345,1774114242770,-338.79435443,0.00013698,2]
[408682346,1774114242780,-500.0,0.00013698,2]
[408682347,1774114242790,-322.69371254,0.00013698,2]
[408682348,1774114242799,-500.0,0.00013698,2]
[408682350,1774114242809,-500.0,0.00013698,2]
[408682352,1774114242819,-500.0,0.00013698,2]
[408682353,1774114242828,-500.0,0.00013698,2]
[408682354,1774114242838,-500.0,0.00013698,2]
[408682357,1774114242848,-483.91768937,0.00013698,2]
[408682360,1774114242858,-500.0,0.00013698,2]
[408682362,1774114242867,-500.0,0.00013698,2]
[408682364,1774114242877,-500.0,0.00013698,2]
[408682366,1774114242887,-500.0,0.00013698,2]
[408682368,1774114242896,-500.0,0.00013698,2]
[408682370,1774114242906,-500.0,0.00013698,2]
[408682372,1774114242915,-500.0,0.00013698,2]
[408682374,1774114242925,-500.0,0.00013698,2]
[408682375,1774114242934,-500.0,0.00013698,2]
[408682376,1774114242944,-500.0,0.00013698,2]
[408682377,1774114242954,-500.0,0.00013698,2]
[408682379,1774114242965,-500.0,0.00013698,2]
[408682381,1774114242974,-500.0,0.00013698,2]
[408682382,1774114242985,-500.0,0.00013698,2]
[408682383,1774114242995,-552.96309069,0.00013698,2]
[408682384,1774114243006,-500.0,0.00013698,2]
[408682385,1774114243015,-500.0,0.00013698,2]
[408682386,1774114243026,-500.0,0.00013698,2]
[408682387,1774114243036,-500.0,0.00013698,2]
[408682388,1774114243045,-500.0,0.00013698,2]
[408682389,1774114243054,-500.0,0.00013698,2]
[408682390,1774114243064,-500.0,0.00013698,2]
[408682391,1774114243073,-500.0,0.00013698,2]
[408682392,1774114243083,-500.0,0.00013698,2]
[408682393,1774114243093,-500.0,0.00013698,2]
[408682394,1774114243102,-500.0,0.00013698,2]
[408682395,1774114243111,-500.0,0.00013698,2]
[408682396,1774114243120,-628.18226675,0.00013698,2]
[408682397,1774114243130,-500.0,0.00013698,2]
[408682398,1774114243140,-500.0,0.00013698,2]
[408682399,1774114243150,-500.0,0.00013698,2]
[408682400,1774114243159,-500.0,0.00013698,2]
[408682401,1774114243169,-500.0,0.00013698,2]
[408682402,1774114243178,-500.0,0.00013698,2]
[408682403,1774114243189,-500.0,0.00013698,2]
[408682404,1774114243200,-500.0,0.00013698,2]
[408682405,1774114243213,-500.0,0.00013698,2]
[408682406,1774114243223,-507.3648691,0.00013698,2]
[408682407,1774114243232,-500.0,0.00013698,2]
[408682408,1774114243242,-500.0,0.00013698,2]
[408682409,1774114243251,-500.0,0.00013698,2]
[408682410,1774114243260,-500.0,0.00013698,2]
[408682411,1774114243270,-500.0,0.00013698,2]
[408682412,1774114243280,-500.0,0.00013698,2]
[408682413,1774114243289,-500.0,0.00013698,2]
[408682414,1774114243299,-500.0,0.00013698,2]
[408682415,1774114243310,-500.0,0.00013698,2]
[408682416,1774114243321,-500.0,0.00013698,2]
[408682417,1774114243332,-500.0,0.00013698,2]
[408682418,1774114243342,-500.0,0.00013698,2]
[408682419,1774114243354,-500.0,0.00013698,2]
[408682420,1774114243363,-500.0,0.00013698,2]
[408682421,1774114243373,-500.0,0.00013698,2]
[408682422,1774114243382,-500.0,0.00013698,2]
[408682423,1774114243391,-500.0,0.00013698,2]
[408682424,1774114243400,-500.0,0.00013698,2]
[408682425,1774114243410,-500.0,0.00013698,2]
[408682426,1774114243419,-500.0,0.00013698,2]
[408682427,1774114243431,-500.0,0.00013698,2]
[408682429,1774114243441,-158.61477964,0.00013698,2]
[408682431,1774114243450,-500.0,0.00013698,2]
[408682432,1774114243459,-500.0,0.00013698,2]
[408682434,1774114243469,-500.0,0.00013698,2]
[408682436,1774114243478,-500.0,0.00013698,2]
[408682438,1774114243488,-512.95742106,0.00013698,2]
[408682440,1774114243498,-1467.64,0.00013698,2]
[408682442,1774114243507,-539.1,0.00013698,2]
[408682444,1774114243517,-539.1,0.00013698,2]
[408682445,1774114243526,-539.1,0.00013698,2]
[408682446,1774114243536,-539.1,0.00013698,2]
[408682447,1774114243546,-539.1,0.00013698,2]
[408682448,1774114243556,-539.1,0.00013698,2]
[408682449,1774114243565,-539.1,0.00013698,2]
[408682450,1774114243575,-539.1,0.00013698,2]
[408682451,1774114243584,-539.1,0.00013698,2]
[408682452,1774114243594,-539.1,0.00013698,2]
[408682453,1774114243603,-539.1,0.00013698,2]
[408682454,1774114243613,-539.1,0.00013698,2]
[408682455,1774114243623,-539.1,0.00013698,2]
[408682456,1774114243632,-539.1,0.00013698,2]
[408682457,1774114243643,-539.1,0.00013698,2]
[408682458,1774114243651,-539.1,0.00013698,2]
[408682460,1774114243659,-500.0,0.00013698,2]
[408682464,1774114243829,-500.0,0.00013698,2]
[408682465,1774114243840,-500.0,0.00013698,2]
[408682466,1774114243851,-500.0,0.00013698,2]
[408682467,1774114243861,-500.0,0.00013698,2]
[408682468,1774114243871,-500.0,0.00013698,2]
[408682469,1774114243883,-500.0,0.00013698,2]
[408682470,1774114243893,-500.0,0.00013698,2]
[408682471,1774114243903,-500.0,0.00013698,2]
[408682472,1774114243913,-500.0,0.00013698,2]
[408682473,1774114243922,-500.0,0.00013698,2]
[408682474,1774114243931,-437.25344445,0.00013698,2]
[408682475,1774114243940,-500.0,0.00013698,2]
[408682476,1774114243949,-500.0,0.00013698,2]
[408682477,1774114243959,-500.0,0.00013698,2]
[408682478,1774114243968,-862.94,0.00013698,2]
[408682479,1774114243978,-500.0,0.00013698,2]
[408682480,1774114243988,-862.94,0.00013698,2]
[408682481,1774114243998,-500.0,0.00013698,2]
[408682482,1774114244008,-862.94,0.00013698,2]
[408682483,1774114244017,-500.0,0.00013698,2]
[408682484,1774114244027,-862.94,0.00013698,2]
[408682485,1774114244036,-500.0,0.00013698,2]
[408682486,1774114244046,-862.94,0.00013698,2]
[408682487,1774114244055,-500.0,0.00013698,2]
[408682488,1774114244065,-862.94,0.00013698,2]
[408682489,1774114244075,-500.0,0.00013698,2]
[408682490,1774114244085,-862.94,0.00013698,2]
[408682491,1774114244095,-500.0,0.00013698,2]
[408682492,1774114244105,-862.94,0.00013698,2]
[408682493,1774114244114,-500.0,0.00013698,2]
[408682494,1774114244124,-862.94,0.00013698,2]
[408682495,1774114244133,-862.94,0.00013698,2]
[408682496,1774114244143,-500.0,0.00013698,2]
[408682497,1774114244151,-500.0,0.00013698,2]
[408682498,1774114244163,-500.0,0.00013698,2]
[408682499,1774114244172,-500.0,0.00013698,2]
[408682500,1774114244181,-500.0,0.00013698,2]
[408682501,1774114244191,-500.0,0.00013698,2]
[408682502,1774114244201,-500.0,0.00013698,2]
[408682503,1774114244215,-500.0,0.00013698,2]
[408682504,1774114244225,-500.0,0.00013698,2]
[408682505,1774114244234,-500.0,0.00013698,2]
[408682506,1774114244246,-956.31,0.00013698,2]
[408682507,1774114244255,-956.31,0.00013698,2]
[408682508,1774114244264,-956.31,0.00013698,2]
[408682509,1774114244274,-956.31,0.00013698,2]
[408682510,1774114244286,-956.31,0.00013698,2]
[408682511,1774114244295,-956.31,0.00013698,2]
[408682512,1774114244304,-956.31,0.00013698,2]
[408682513,1774114244313,-956.31,0.00013698,2]
[408682514,1774114244322,-956.31,0.00013698,2]
[408682515,1774114244332,-956.31,0.00013698,2]
[408682516,1774114244341,-956.31,0.00013698,2]
[408682517,1774114244350,-956.31,0.00013698,2]
[408682518,1774114244359,-956.31,0.00013698,2]
[408682519,1774114244368,-956.31,0.00013698,2]
[408682520,1774114244377,-956.31,0.00013698,2]
[408682521,1774114244387,-956.31,0.00013698,2]
[408682522,1774114244396,-956.31,0.00013698,2]
[408682523,1774114244405,-956.31,0.00013698,2]
[408682524,1774114244415,-150.0,0.00013699,2]
[408682525,1774114244425,-3832.02,0.00013699,2]
[408682526,1774114244434,-200.0,0.00013699,2]
[408682527,1774114244443,-516.79,0.00013699,2]
[408682528,1774114244453,-715.81,0.00013699,2]
[408682529,1774114244462,-187.04841564,0.00013699,2]
[408682530,1774114244471,-346.05,0.000137,2]
[408682531,1774114244480,-495.59,0.000137,2]
[408682532,1774114244489,-871.28,0.000137,2]
[408682533,1774114244499,-1417.39,0.000137,2]
[408682534,1774114244508,-1418.43,0.000137,2]
[408682535,1774114244518,-962.58,0.000137,2]
[408682536,1774114244527,-166.66,0.00013793,2]
[408682537,1774114244537,-304.51,0.00013896,2]
[408682538,1774114244546,-500.0,0.00013913,2]
[408682539,1774114244555,-8718.02588603,0.0001394,2]
[408682540,1774114244564,-32605.39692209,0.0001394,2]
[408682541,1774114244574,-1467.64,0.00013972,2]
[408682542,1774114244583,-150.0,0.00013973,2]
[408682543,1774114244592,-526.64865505,0.00013991,2]
[408682544,1774114244602,-1500.0,0.00014,2]
[408682545,1774114244611,-507.0,0.00014,2]
[408682546,1774114244621,-189.44762194,0.00014009,2]
[408682547,1774114244632,-166.66,0.00014077,2]
[408682548,1774114244642,-600.0,0.00014101,2]
[408682549,1774114244652,-255.0,0.00014144,2]
[408682550,1774114244661,-500.0,0.00014187,2]
[408682551,1774114244670,-500.5356408,0.00014221,2]
[408682552,1774114244679,-1000.0,0.00014221,2]
[408682553,1774114244688,-500.0,0.00014221,2]
[408682554,1774114244697,-502.82851011,0.00014221,2]
[408682555,1774114244707,-1000.0,0.00014221,2]
[408682556,1774114244716,-1002.75906759,0.00014221,2]
[408682557,1774114244725,-1000.0,0.00014221,2]
[408682558,1774114244735,-1000.0,0.00014221,2]
[408682559,1774114244744,-1000.0,0.00014221,2]
[408682560,1774114244755,-1000.0,0.00014221,2]
[408682561,1774114244764,-1000.0,0.00014221,2]
[408682562,1774114244774,-1000.6537405,0.00014221,2]
[408682563,1774114244783,-268.45,0.00014221,2]
[408682564,1774114244792,-200.0,0.00014232,2]
[408682565,1774114244801,-8718.02588603,0.00014241,2]
[408682566,1774114244810,-32605.39692209,0.00014241,2]
[408682567,1774114244820,-1467.64,0.00014246,2]
[408682568,1774114244829,-604.66883001,0.0001426,2]
[408682569,1774114244839,-250.0,0.00014329,2]
[408682570,1774114244848,-300.0,0.00014329,2]
[408682571,1774114244858,-197.57699303,0.00014329,2]
[408682572,1774114244868,-250.0,0.00014329,2]
[408682573,1774114244877,-500.0,0.00014329,2]
[408682574,1774114244887,-500.0,0.00014329,2]
[408682575,1774114244896,-500.0,0.00014329,2]
[408682576,1774114244906,-1680.0,0.0001434,2]
[408682577,1774114244915,-166.66,0.00014362,2]
[408682578,1774114244924,-3832.02,0.00014384,2]
[408682579,1774114244933,-10387.76682949,0.0001439,2]
[408682580,1774114244943,-2403.0,0.000144,2]
[408682581,1774114244951,-1568.0,0.000144,2]
[408682582,1774114244961,-861.0,0.000144,2]
[408682583,1774114244970,-300.0,0.00014439,2]
[408682584,1774114244980,-250.0,0.00014439,2]
[408682585,1774114244990,-2223.15461743,0.00014441,2]
[408682586,1774114244999,-300.0,0.00014446,2]
[408682587,1774114245009,-2500.0,0.00014447,2]
[408682588,1774114245019,-2500.0,0.00014447,2]
[408682589,1774114245029,-5000.0,0.00014447,2]
[408682590,1774114245038,-193.0,0.00014447,2]
[408682591,1774114245047,-195.0,0.0001445,2]
[408682592,1774114245056,-195.0,0.0001445,2]
[408682593,1774114245066,-195.0,0.0001445,2]
[408682594,1774114245075,-600.0,0.0001445,2]
[408682595,1774114245085,-600.0,0.0001445,2]
[408682596,1774114245095,-600.0,0.0001445,2]
[408682597,1774114245104,-600.0,0.0001445,2]
[408682598,1774114245114,-600.0,0.0001445,2]
[408682599,1774114245124,-161.206,0.0001445,2]
[408682600,1774114245133,-500.0,0.00014461,2]
[408682601,1774114245143,-526.64865505,0.00014469,2]
[408682602,1774114245153,-424.15409199,0.00014469,2]
[408682603,1774114245162,-2000.0,0.00014498,2]
[408682604,1774114245171,-879.24,0.00014505,2]
[408682605,1774114245181,-1467.64,0.0001452,2]
[408682606,1774114245191,-956.31,0.00014542,2]
[408682607,1774114245200,-8718.02588603,0.00014543,2]
[408682608,1774114245214,-32605.39692209,0.00014543,2]
[408682609,1774114245223,-318.21033924,0.00014567,2]
[408682610,1774114245233,-4052.08,0.00014627,2]
[408682611,1774114245243,-539.1,0.00014627,2]
[408682612,1774114245253,-304.51,0.00014627,2]
[408682613,1774114245262,-956.9032649,0.00014642,2]
[408682614,1774114245271,-2719.18729249,0.00014642,2]
[408682615,1774114245280,-166.66,0.00014646,2]
[408682616,1774114245290,-500.0,0.00014735,2]
[408682617,1774114245299,-1500.0,0.00014768,2]
[408682618,1774114245309,-1500.0,0.00014768,2]
[408682619,1774114245319,-1500.0,0.00014768,2]
[408682620,1774114245328,-500.0,0.00014768,2]
[408682621,1774114245338,-500.0,0.00014768,2]
[408682622,1774114245348,-1000.0,0.00014768,2]
[408682623,1774114245357,-879.24,0.00014779,2]
[408682624,1774114245366,-200.0,0.0001478,2]
[408682625,1774114245375,-164.262879,0.00014784,7]
[408682626,1774114245385,-160.0,0.00014784,7]
[408682627,1774114245394,-160.0,0.00014785,7]
[408682628,1774114245403,-1467.64,0.00014794,2]
[408682629,1774114245413,-161.0,0.00014795,2]
[408682630,1774114245422,-154.42032794,0.00014804,2]
[408682631,1774114245431,-2382.4245912,0.00014813,2]
[408682632,1774114245441,-35589.1566587,0.00014828,2]
[408682633,1774114245450,-8718.02588603,0.00014844,2]
[408682634,1774114245459,-32605.39692209,0.00014844,2]
[408682635,1774114245468,-500.0,0.00014849,2]
[408682636,1774114245478,-171.32316631,0.000149,2]
[408682637,1774114245487,-171.32316631,0.000149,2]
[408682638,1774114245497,-23557.0,0.00014901,2]
[408682639,1774114245506,-3240.0,0.00014907,2]
[408682640,1774114245515,-166.66,0.0001493,2]
[408682641,1774114245524,-526.64865505,0.00014946,2]
[408682642,1774114245534,-250.0,0.00014956,2]
[408682643,1774114245543,-500.0,0.00014956,2]
[408682644,1774114245553,-500.0,0.00014956,2]
[408682645,1774114245563,-399.2510256,0.00014956,2]
[408682646,1774114245572,-500.0,0.00014956,2]
[408682647,1774114245581,-9211.34798985,0.00014956,2]
[408682648,1774114245590,-500.0,0.00014956,2]
[408682649,1774114245599,-500.0,0.00014956,2]
[408682650,1774114245608,-500.0,0.00014956,2]
[408682651,1774114245618,-500.0,0.00014956,2]
[408682652,1774114245627,-500.0,0.00014956,2]
[408682653,1774114245636,-500.0,0.00014956,2]
[408682654,1774114245646,-500.0,0.00014956,2]
[408682655,1774114245655,-500.0,0.00014956,2]
[408682656,1774114245665,-500.0,0.00014956,2]
[408682657,1774114245674,-556.64496763,0.00014956,2]
[408682658,1774114245684,-496.87201155,0.00014956,2]
[408682659,1774114245694,-500.0,0.00014956,2]
[408682660,1774114245704,-500.0,0.00014956,2]
[408682661,1774114245714,-250.0,0.00014956,2]
[408682662,1774114245723,-500.0,0.00014956,2]
[408682663,1774114245732,-250.0,0.00014956,2]
[408682664,1774114245742,-250.0,0.00014956,2]
[408682665,1774114245751,-500.0,0.00014956,2]
[408682666,1774114245761,-250.0,0.00014956,2]
[408682667,1774114245773,-500.0,0.00014956,2]
[408682668,1774114245785,-250.0,0.00014956,2]
[408682669,1774114245795,-500.0,0.00014956,2]
[408682670,1774114245805,-250.0,0.00014956,2]
[408682671,1774114245816,-500.0,0.00014956,2]
[408682672,1774114245825,-250.0,0.00014956,2]
[408682673,1774114245836,-500.0,0.00014956,2]
[408682674,1774114245846,-250.0,0.00014956,2]
[408682675,1774114245857,-500.0,0.00014956,2]
[408682676,1774114245866,-250.0,0.00014956,2]
[408682677,1774114245876,-250.0,0.00014956,2]
[408682678,1774114245885,-250.0,0.00014956,2]
[408682679,1774114245895,-250.0,0.00014956,2]
[408682680,1774114245904,-250.0,0.00014956,2]
[408682681,1774114245913,-250.0,0.00014956,2]
[408682682,1774114245922,-250.0,0.00014956,2]
[408682683,1774114245932,-250.0,0.00014956,2]
[408682684,1774114245941,-151.0,0.00014956,2]
[408682685,1774114245951,-171.64692845,0.00014956,2]
[408682686,1774114245961,-282.59450799,0.00014956,2]
[408682687,1774114245971,-151.0,0.00014956,2]
[408682688,1774114245980,-151.0,0.00014956,2]
[408682689,1774114245989,-151.0,0.00014956,2]
[408682690,1774114245998,-151.0,0.00014956,2]
[408682691,1774114246008,-151.0,0.00014956,2]
[408682692,1774114246018,-151.0,0.00014956,2]
[408682693,1774114246028,-226.86561385,0.00014956,2]
[408682694,1774114246038,-151.0,0.00014956,2]
[408682695,1774114246048,-160.0,0.0001498,7]
[408682696,1774114246057,-500.0,0.00015,2]
[408682697,1774114246067,-500.0,0.00015,2]
[408682698,1774114246076,-500.0,0.00015,2]
[408682699,1774114246085,-500.0,0.00015,2]
[408682700,1774114246095,-500.0,0.00015,2]
[408682701,1774114246104,-500.0,0.00015,2]
[408682702,1774114246113,-500.0,0.00015,2]
[408682703,1774114246123,-500.0,0.00015,2]
[408682704,1774114246132,-500.0,0.00015,2]
[408682705,1774114246141,-500.0,0.00015,2]
[408682706,1774114246151,-649.82,0.00015,2]
[408682707,1774114246161,-500.0,0.00015,2]
[408682708,1774114246170,-500.0,0.00015,2]
[408682709,1774114246179,-500.0,0.00015,2]
[408682710,1774114246189,-442.97,0.00015,2]
[408682711,1774114246198,-250.0,0.00015,2]
[408682712,1774114246209,-500.0,0.00015011,2]
[408682713,1774114246220,-9552.16786547,0.00015011,2]
[408682714,1774114246230,-151.0,0.00015011,2]
[408682715,1774114246239,-500.0,0.00015016,2]
[408682716,1774114246249,-500.0,0.00015016,2]
[408682717,1774114246259,-500.0,0.00015016,2]
[408682718,1774114246269,-879.24,0.00015053,2]
[408682719,1774114246278,-500.0,0.00015063,2]
[408682720,1774114246289,-500.0,0.00015063,2]
[408682721,1774114246299,-500.0,0.00015063,2]
[408682722,1774114246309,-500.0,0.00015066,2]
[408682723,1774114246318,-9905.5980765,0.00015066,2]
[408682724,1774114246327,-151.0,0.00015066,2]
[408682725,1774114246337,-202.0,0.00015068,2]
[408682727,1774114246345,-1467.64,0.00015068,2]
[408682728,1774114246355,-2500.0,0.00015068,2]
[408682730,1774114246365,-2500.0,0.00015068,2]
[408682731,1774114246374,-2500.0,0.00015068,2]
[408682732,1774114246383,-2500.0,0.00015068,2]
[408682733,1774114246393,-2500.0,0.00015068,2]
[408682734,1774114246403,-2500.0,0.00015068,2]
[408682735,1774114246411,-2500.0,0.00015068,2]
[408682736,1774114246422,-2500.0,0.00015068,2]
[408682737,1774114246433,-2500.0,0.00015068,2]
[408682738,1774114246442,-2500.0,0.00015068,2]
[408682739,1774114246452,-2500.0,0.00015068,2]
[408682740,1774114246462,-2500.0,0.00015068,2]
[408682741,1774114246471,-2500.0,0.00015068,2]
[408682742,1774114246481,-2500.0,0.00015068,2]
[408682743,1774114246490,-2500.0,0.00015068,2]
[408682744,1774114246500,-2500.0,0.00015068,2]
[408682745,1774114246511,-2500.0,0.00015068,2]
[408682746,1774114246521,-3832.02,0.00015068,2]
[408682747,1774114246530,-956.31,0.00015085,2]
[408682748,1774114246540,-956.31,0.00015085,2]
[408682749,1774114246549,-956.31,0.00015085,2]
[408682750,1774114246559,-956.31,0.00015085,2]
[408682752,1774114246568,-956.47372636,0.00015085,2]
[408682754,1774114246577,-418.0,0.00015086,2]
[408682756,1774114246586,-418.0,0.00015086,2]
[408682758,1774114246595,-418.0,0.00015086,2]
[408682760,1774114246605,-418.0,0.00015086,2]
[408682762,1774114246614,-418.0,0.00015086,2]
[408682764,1774114246623,-418.0,0.00015086,2]
[408682766,1774114246633,-418.0,0.00015086,2]
[408682768,1774114246642,-418.0,0.00015086,2]
[408682770,1774114246651,-418.0,0.00015086,2]
[408682772,1774114246660,-418.0,0.00015086,2]
[408682774,1774114246669,-418.0,0.00015086,2]
[408682776,1774114246678,-418.0,0.00015086,2]
[408682778,1774114246688,-418.0,0.00015086,2]
[408682780,1774114246698,-418.0,0.00015086,2]
[408682782,1774114246707,-418.0,0.00015086,2]
[408682784,1774114246716,-418.0,0.00015086,2]
[408682786,1774114246725,-418.0,0.00015086,2]
[408682788,1774114246735,-418.0,0.00015086,2]
[408682789,1774114246745,-418.0,0.00015086,2]
[408682790,1774114246755,-418.0,0.00015086,2]
[408682791,1774114246765,-418.0,0.00015086,2]
[408682792,1774114246774,-418.0,0.00015086,2]
[408682793,1774114246783,-418.0,0.00015086,2]
[408682794,1774114246792,-441.56029481,0.00015086,2]
[408682795,1774114246801,-1519.0,0.00015086,2]
[408682796,1774114246810,-1519.0,0.00015086,2]
[408682797,1774114246819,-1519.0,0.00015086,2]
[408682798,1774114246828,-1519.0,0.00015086,2]
[408682799,1774114246837,-1519.0,0.00015086,2]
[408682800,1774114246847,-1519.0,0.00015086,2]
[408682801,1774114246856,-1519.0,0.00015086,2]
[408682802,1774114246867,-1519.0,0.00015086,2]
[408682803,1774114246881,-1519.0,0.00015086,2]
[408682804,1774114246891,-1519.0,0.00015086,2]
[408682805,1774114246900,-1519.0,0.00015086,2]
[408682806,1774114246911,-1519.0,0.00015086,2]
[408682807,1774114246920,-1519.0,0.00015086,2]
[408682808,1774114246932,-1519.0,0.00015086,2]
[408682809,1774114246944,-1519.0,0.00015086,2]
[408682810,1774114246953,-1519.0,0.00015086,2]
[408682811,1774114246964,-1519.0,0.00015086,2]
[408682812,1774114246974,-1519.0,0.00015086,2]
[408682813,1774114246984,-1519.0,0.00015086,2]
[408682814,1774114246994,-500.0,0.00015086,2]
[408682815,1774114247004,-501.53119772,0.00015086,2]
[408682816,1774114247014,-1519.0,0.00015086,2]
[408682817,1774114247023,-1519.0,0.00015086,2]
[408682818,1774114247033,-1519.0,0.00015086,2]
[408682819,1774114247043,-1519.0,0.00015086,2]
[408682820,1774114247052,-1536.58591241,0.00015086,2]
[408682821,1774114247062,-500.0,0.00015087,2]
[408682822,1774114247071,-500.0,0.00015087,2]
[408682823,1774114247081,-160.18064202,0.00015087,2]
[408682824,1774114247091,-160.048,0.00015087,2]
[408682825,1774114247100,-500.0,0.00015087,2]
[408682826,1774114247109,-500.0,0.00015121,2]
[408682827,1774114247119,-10272.10520533,0.00015121,2]
[408682828,1774114247128,-151.0,0.00015121,2]
[408682829,1774114247137,-783.45,0.00015126,2]
[408682830,1774114247148,-1568.0,0.00015138,2]
[408682831,1774114247158,-8718.02588603,0.00015145,2]
[408682832,1774114247167,-32605.39692209,0.00015145,2]
[408682833,1774114247177,-500.0,0.00015176,2]
[408682834,1774114247187,-10652.17309792,0.00015176,2]
[408682835,1774114247196,-151.0,0.00015176,2]
[408682836,1774114247205,-531.5907805,0.0001519,2]
[408682837,1774114247219,-367.89443197,0.000152,2]